fUSD/lending_fUSD_20250109
["ID","MTS","AMOUNT","RATE_DAILY","PERIOD"]
[348328001,1736446247652,-500.0,9.966e-05,2]
[348328002,1736446247662,-500.0,9.966e-05,2]
[348328003,1736446247672,-500.0,9.966e-05,2]
[348328004,1736446247681,-1097.98,9.966e-05,2]
[348328005,1736446247691,-500.0,9.966e-05,2]
[348328006,1736446247700,-575.7,9.966e-05,2]
[348328007,1736446247710,-500.0,9.966e-05,2]
[348328008,1736446247719,-604.6,9.966e-05,2]
[348328009,1736446247729,-500.0,9.966e-05,2]
[348328010,1736446247739,-500.0,9.966e-05,2]
[348328011,1736446247749,-500.0,9.966e-05,2]
[348328012,1736446247758,-500.0,9.966e-05,2]
[348328013,1736446247769,-721.27,9.966e-05,2]
[348328014,1736446247779,-500.0,9.966e-05,2]
[348328015,1736446247789,-977.99,9.966e-05,2]
[348328016,1736446247798,-500.0,9.966e-05,2]
[348328017,1736446247809,-500.0,9.966e-05,2]
[348328018,1736446247819,-500.0,9.966e-05,2]
[348328019,1736446247829,-500.0,9.966e-05,2]
[348328020,1736446247838,-500.0,9.966e-05,2]
[348328021,1736446247849,-500.0,9.966e-05,2]
[348328022,1736446247861,-500.0,9.966e-05,2]
[348328023,1736446247878,-500.0,9.966e-05,2]
[348328024,1736446247887,-500.0,9.966e-05,2]
[348328025,1736446247899,-547.73,9.966e-05,2]
[348328026,1736446247910,-911.73,9.966e-05,2]
[348328027,1736446247921,-500.0,9.966e-05,2]
[348328028,1736446247931,-500.0,9.966e-05,2]
[348328029,1736446247940,-500.0,9.966e-05,2]
[348328030,1736446247950,-500.0,9.966e-05,2]
[348328031,1736446247960,-856.27,9.966e-05,2]
[348328032,1736446247969,-500.0,9.966e-05,2]
[348328033,1736446247979,-500.0,9.966e-05,2]
[348328034,1736446247989,-500.0,9.966e-05,2]
[348328035,1736446247999,-500.0,9.966e-05,2]
[348328036,1736446248008,-552.74,9.966e-05,2]
[348328037,1736446248018,-500.0,9.966e-05,2]
[348328038,1736446248028,-2976.67,9.966e-05,2]
[348328039,1736446248038,-500.0,9.966e-05,2]
[348328040,1736446248047,-500.0,9.966e-05,2]
[348328041,1736446248058,-500.0,9.966e-05,2]
[348328042,1736446248068,-500.0,9.966e-05,2]
[348328043,1736446248078,-500.0,9.966e-05,2]
[348328044,1736446248088,-500.0,9.966e-05,2]
[348328045,1736446248098,-500.0,9.966e-05,2]
[348328046,1736446248108,-551.12,9.966e-05,2]
[348328047,1736446248118,-500.0,9.966e-05,2]
[348328048,1736446248128,-500.0,9.966e-05,2]
[348328049,1736446248138,-425.27648481,9.966e-05,2]
[348328050,1736446248148,-597.63,9.966e-05,2]
[348328051,1736446248157,-500.0,9.966e-05,2]
[348328052,1736446248167,-500.0,9.966e-05,2]
[348328053,1736446248180,-645.63,9.966e-05,2]
[348328054,1736446248190,-500.0,9.966e-05,2]
[348328055,1736446248200,-500.0,9.966e-05,2]
[348328056,1736446248209,-500.0,9.966e-05,2]
[348328057,1736446248219,-613.72,9.966e-05,2]
[348328058,1736446248229,-501.77731727,9.966e-05,2]
[348328059,1736446248239,-500.0,9.966e-05,2]
[348328060,1736446248248,-500.0,9.966e-05,2]
[348328061,1736446248258,-500.0,9.966e-05,2]
[348328062,1736446248268,-500.0,9.966e-05,2]
[348328063,1736446248278,-500.0,9.966e-05,2]
[348328064,1736446248287,-1554.32,9.966e-05,2]
[348328065,1736446248297,-500.0,9.966e-05,2]
[348328066,1736446248306,-667.84,9.966e-05,2]
[348328067,1736446248316,-500.0,9.966e-05,2]
[348328068,1736446248325,-500.0,9.966e-05,2]
[348328069,1736446248335,-500.0,9.966e-05,2]
[348328070,1736446248345,-500.0,9.966e-05,2]
[348328071,1736446248356,-715.52,9.966e-05,2]
[348328072,1736446248369,-500.0,9.966e-05,2]
[348328073,1736446248381,-500.0,9.966e-05,2]
[348328074,1736446248393,-500.0,9.966e-05,2]
[348328075,1736446248407,-500.0,9.966e-05,2]
[348328076,1736446248418,-500.0,9.966e-05,2]
[348328077,1736446248430,-1524.32,9.966e-05,2]
[348328078,1736446248440,-500.0,9.966e-05,2]
[348328079,1736446248450,-689.4,9.966e-05,2]
[348328080,1736446248460,-500.0,9.966e-05,2]
[348328081,1736446248469,-653.62,9.966e-05,2]
[348328082,1736446248479,-500.0,9.966e-05,2]
[348328083,1736446248489,-500.0,9.966e-05,2]
[348328084,1736446248499,-500.0,9.966e-05,2]
[348328085,1736446248508,-500.0,9.966e-05,2]
[348328086,1736446248518,-500.0,9.966e-05,2]
[348328087,1736446248527,-660.67,9.966e-05,2]
[348328088,1736446248538,-500.0,9.966e-05,2]
[348328089,1736446248547,-500.0,9.966e-05,2]
[348328090,1736446248557,-2792.63,9.966e-05,2]
[348328091,1736446248567,-500.0,9.966e-05,2]
[348328092,1736446248576,-500.0,9.966e-05,2]
[348328093,1736446248586,-500.0,9.966e-05,2]
[348328094,1736446248595,-500.0,9.966e-05,2]
[348328095,1736446248605,-2039.19,9.966e-05,2]
[348328096,1736446248615,-500.0,9.966e-05,2]
[348328097,1736446248624,-500.0,9.966e-05,2]
[348328098,1736446248633,-500.0,9.966e-05,2]
[348328099,1736446248643,-500.0,9.966e-05,2]
[348328100,1736446248652,-458.92312909,9.966e-05,2]
[348328101,1736446248662,-1105.4,9.966e-05,2]
[348328102,1736446248673,-500.0,9.966e-05,2]
[348328103,1736446248682,-500.0,9.966e-05,2]
[348328104,1736446248691,-500.0,9.966e-05,2]
[348328105,1736446248701,-500.0,9.966e-05,2]
[348328106,1736446248710,-500.0,9.966e-05,2]
[348328107,1736446248719,-502.16479961,9.966e-05,2]
[348328108,1736446248729,-500.0,9.966e-05,2]
[348328109,1736446248739,-500.0,9.966e-05,2]
[348328110,1736446248750,-1883.64,9.966e-05,2]
[348328111,1736446248759,-500.0,9.966e-05,2]
[348328112,1736446248773,-731.185071,9.966e-05,2]
[348328113,1736446248783,-500.0,9.966e-05,2]
[348328114,1736446248793,-500.0,9.966e-05,2]
[348328115,1736446248803,-500.0,9.966e-05,2]
[348328116,1736446248815,-500.0,9.966e-05,2]
[348328117,1736446248825,-3402.98,9.966e-05,2]
[348328118,1736446248835,-500.0,9.966e-05,2]
[348328119,1736446248844,-500.0,9.966e-05,2]
[348328120,1736446248855,-500.0,9.966e-05,2]
[348328121,1736446248865,-500.0,9.966e-05,2]
[348328122,1736446248874,-6027.63,9.966e-05,2]
[348328123,1736446248883,-907.86,9.966e-05,2]
[348328124,1736446248893,-500.0,9.966e-05,2]
[348328125,1736446248903,-500.0,9.966e-05,2]
[348328126,1736446248912,-500.0,9.966e-05,2]
[348328127,1736446248923,-500.0,9.966e-05,2]
[348328128,1736446248934,-500.0,9.966e-05,2]
[348328129,1736446248944,-521.49,9.966e-05,2]
[348328130,1736446248964,-500.0,9.966e-05,2]
[348328131,1736446248986,-500.0,9.966e-05,2]
[348328132,1736446249011,-500.0,9.966e-05,2]
[348328133,1736446249035,-500.0,9.966e-05,2]
[348328134,1736446249060,-500.39832733,9.966e-05,2]
[348328135,1736446249288,-500.0,9.966e-05,2]
[348328136,1736446249299,-617.41,9.966e-05,2]
[348328137,1736446249309,-500.0,9.966e-05,2]
[348328138,1736446249320,-500.0,9.966e-05,2]
[348328139,1736446249330,-500.0,9.966e-05,2]
[348328140,1736446249340,-500.0,9.966e-05,2]
[348328141,1736446249350,-544.73,9.966e-05,2]
[348328142,1736446249360,-501.48196027,9.966e-05,2]
[348328143,1736446249369,-2040.34,9.966e-05,2]
[348328144,1736446249379,-500.0,9.966e-05,2]
[348328145,1736446249388,-500.0,9.966e-05,2]
[348328146,1736446249398,-505.47479646,9.966e-05,2]
[348328147,1736446249408,-500.0,9.966e-05,2]
[348328148,1736446249417,-500.0,9.966e-05,2]
[348328149,1736446249427,-727.318223,9.966e-05,2]
[348328150,1736446249436,-500.0,9.966e-05,2]
[348328151,1736446249445,-500.0,9.966e-05,2]
[348328152,1736446249456,-500.0,9.966e-05,2]
[348328153,1736446249464,-500.0,9.966e-05,2]
[348328154,1736446249474,-500.0,9.966e-05,2]
[348328155,1736446249484,-500.0,9.966e-05,2]
[348328156,1736446249494,-1167.08,9.966e-05,2]
[348328157,1736446249504,-500.0,9.966e-05,2]
[348328158,1736446249515,-669.77,9.966e-05,2]
[348328159,1736446249525,-500.0,9.966e-05,2]
[348328160,1736446249535,-625.31,9.966e-05,2]
[348328161,1736446249545,-500.0,9.966e-05,2]
[348328162,1736446249555,-500.0,9.966e-05,2]
[348328163,1736446249565,-500.0,9.966e-05,2]
[348328164,1736446249575,-500.42750226,9.966e-05,2]
[348328165,1736446249584,-500.0,9.966e-05,2]
[348328166,1736446249787,-500.0,9.966e-05,2]
[348328167,1736446249797,-500.0,9.966e-05,2]
[348328168,1736446249807,-500.0,9.966e-05,2]
[348328169,1736446249820,-500.0,9.966e-05,2]
[348328170,1736446249830,-663.2,9.966e-05,2]
[348328171,1736446249839,-500.0,9.966e-05,2]
[348328172,1736446249851,-1967.19,9.966e-05,2]
[348328173,1736446249862,-500.0,9.966e-05,2]
[348328174,1736446249872,-500.0,9.966e-05,2]
[348328175,1736446249882,-500.0,9.966e-05,2]
[348328176,1736446249892,-500.0,9.966e-05,2]
[348328177,1736446249902,-960.63,9.966e-05,2]
[348328178,1736446249912,-500.0,9.966e-05,2]
[348328179,1736446249922,-500.0,9.966e-05,2]
[348328180,1736446249932,-335.98725137,9.966e-05,2]
[348328181,1736446249942,-518.10315357,9.966e-05,2]
[348328182,1736446249952,-500.0,9.966e-05,2]
[348328183,1736446249961,-500.0,9.966e-05,2]
[348328184,1736446249971,-538.81,9.966e-05,2]
[348328185,1736446249982,-1864.07,9.966e-05,2]
[348328186,1736446249992,-500.0,9.966e-05,2]
[348328187,1736446250002,-500.58688688,9.966e-05,2]
[348328188,1736446250012,-500.0,9.966e-05,2]
[348328189,1736446250022,-500.0,9.966e-05,2]
[348328190,1736446250032,-500.0,9.966e-05,2]
[348328191,1736446250042,-502.49281034,9.966e-05,2]
[348328192,1736446250052,-533.66,9.966e-05,2]
[348328193,1736446250061,-500.0,9.966e-05,2]
[348328194,1736446250071,-500.0,9.966e-05,2]
[348328195,1736446250081,-500.0,9.966e-05,2]
[348328196,1736446250091,-413.28175034,9.966e-05,2]
[348328197,1736446250111,-86.71824966,9.966e-05,2]
[348328198,1736446250120,-427.74141644,9.966e-05,2]
[348328199,1736446250132,-85.63858356,9.966e-05,2]
[348328200,1736446250142,-500.0,9.966e-05,2]
[348328201,1736446250151,-199.7100973,9.966e-05,2]
[348328202,1736446250162,-253.46754521,9.966e-05,2]
[348328203,1736446250175,-46.82235749,9.966e-05,2]
[348328204,1736446250185,-500.0,9.966e-05,2]
[348328205,1736446250194,-500.0,9.966e-05,2]
[348328206,1736446250204,-426.77896251,9.966e-05,2]
[348328207,1736446250229,-73.22103749,9.966e-05,2]
[348328208,1736446250238,-707.52,9.966e-05,2]
[348328209,1736446250247,-500.0,9.966e-05,2]
[348328210,1736446250257,-500.0,9.966e-05,2]
[348328211,1736446250267,-500.0,9.966e-05,2]
[348328212,1736446250277,-500.0,9.966e-05,2]
[348328213,1736446250286,-500.0,9.966e-05,2]
[348328214,1736446250296,-149.33396251,9.966e-05,2]
[348328215,1736446250308,-350.66603749,9.966e-05,2]
[348328216,1736446250317,-277.73920255,9.966e-05,2]
[348328217,1736446250327,-42.16375996,9.966e-05,2]
[348328218,1736446250345,-3758.03624004,9.966e-05,2]
[348328219,1736446250355,-520.07,9.966e-05,2]
[348328220,1736446250366,-500.0,9.966e-05,2]
[348328221,1736446250376,-125.59210876,9.966e-05,2]
[348328222,1736446250523,-464.64669873,9.692e-05,2]
[348328223,1736446250535,-35.35330127,9.692e-05,2]
[348328224,1736446250545,-502.16239721,9.692e-05,2]
[348328225,1736446250554,-374.40789124,9.966e-05,2]
[348328226,1736446250564,-660.12,9.966e-05,2]
[348328227,1736446250573,-500.0,9.966e-05,2]
[348328228,1736446250583,-500.0,9.966e-05,2]
[348328229,1736446250592,-285.45641028,9.966e-05,2]
[348328230,1736446250612,-482.13358972,9.966e-05,2]
[348328231,1736446250622,-500.0,9.966e-05,2]
[348328232,1736446250632,-325.84473694,9.966e-05,2]
[348328233,1736446250644,-2551.26526306,9.966e-05,2]
[348328234,1736446250654,-500.0,9.966e-05,2]
[348328235,1736446250664,-835.3,9.966e-05,2]
[348328236,1736446250674,-500.0,9.966e-05,2]
[348328237,1736446250685,-500.0,9.966e-05,2]
[348328238,1736446250694,-500.0,9.966e-05,2]
[348328239,1736446250704,-1020.87,9.966e-05,2]
[348328240,1736446250714,-500.0,9.966e-05,2]
[348328241,1736446250723,-62.4370429,9.966e-05,2]
[348328242,1736446250735,-437.5629571,9.966e-05,2]
[348328243,1736446250745,-500.0,9.966e-05,2]
[348328244,1736446250755,-500.0,9.966e-05,2]
[348328245,1736446250766,-500.0,9.966e-05,2]
[348328246,1736446250777,-500.0,9.966e-05,2]
[348328247,1736446250786,-541.36,9.966e-05,2]
[348328248,1736446250796,-500.0,9.966e-05,2]
[348328249,1736446250806,-537.31,9.966e-05,2]
[348328250,1736446250815,-500.0,9.966e-05,2]
[348328251,1736446250825,-564.98,9.966e-05,2]
[348328252,1736446250834,-500.0,9.966e-05,2]
[348328253,1736446250845,-500.0,9.966e-05,2]
[348328254,1736446250854,-500.0,9.966e-05,2]
[348328255,1736446250863,-500.0,9.966e-05,2]
[348328256,1736446250872,-500.0,9.966e-05,2]
[348328257,1736446250882,-500.0,9.966e-05,2]
[348328258,1736446250892,-770.91,9.966e-05,2]
[348328259,1736446250901,-500.0,9.966e-05,2]
[348328260,1736446250910,-500.0,9.966e-05,2]
[348328261,1736446250920,-1325.59,9.966e-05,2]
[348328262,1736446250933,-500.0,9.966e-05,2]
[348328263,1736446250942,-724.37,9.966e-05,2]
[348328264,1736446250952,-332.8594034,9.966e-05,2]
[348328265,1736446250962,-565.07,9.966e-05,2]
[348328266,1736446250971,-500.0,9.966e-05,2]
[348328267,1736446250981,-500.0,9.966e-05,2]
[348328268,1736446250991,-500.0,9.966e-05,2]
[348328269,1736446251000,-479.4239314,9.966e-05,2]
[348328270,1736446251009,-500.0,9.966e-05,2]
[348328271,1736446251019,-500.0,9.966e-05,2]
[348328272,1736446251028,-188.48608733,9.966e-05,2]
[348328273,1736446251038,-1157.94,9.966e-05,2]
[348328274,1736446251047,-500.0,9.966e-05,2]
[348328275,1736446251057,-500.0,9.966e-05,2]
[348328276,1736446251067,-500.0,9.966e-05,2]
[348328277,1736446251076,-500.0,9.966e-05,2]
[348328278,1736446251085,-500.0,9.966e-05,2]
[348328279,1736446251094,-500.0,9.966e-05,2]
[348328280,1736446251104,-500.0,9.966e-05,2]
[348328281,1736446251114,-502.55083644,9.966e-05,2]
[348328282,1736446251126,-235.81916356,9.966e-05,2]
[348328283,1736446251136,-500.0,9.966e-05,2]
[348328284,1736446251146,-191.98771644,9.966e-05,2]
[348328285,1736446251157,-308.01228356,9.966e-05,2]
[348328286,1736446251167,-500.0,9.966e-05,2]
[348328287,1736446251178,-489.12989798,9.966e-05,2]
[348328288,1736446251187,-500.0,9.966e-05,2]
[348328289,1736446251197,-500.0,9.966e-05,2]
[348328290,1736446251207,-500.0,9.966e-05,2]
[348328291,1736446251217,-500.0,9.966e-05,2]
[348328292,1736446251227,-500.0,9.966e-05,2]
[348328293,1736446251236,-368.53354863,9.966e-05,2]
[348328294,1736446251270,-500.0,9.692e-05,2]
[348328295,1736446251280,-2.87964328,9.966e-05,2]
[348328296,1736446251292,-128.58680809,9.966e-05,2]
[348328297,1736446251302,-500.0,9.966e-05,2]
[348328298,1736446251313,-154.93872883,9.966e-05,2]
[348328299,1736446251324,-345.06127117,9.966e-05,2]
[348328300,1736446251334,-500.0,9.966e-05,2]
[348328301,1736446251343,-526.88,9.966e-05,2]
[348328302,1736446251353,-500.0,9.966e-05,2]
[348328303,1736446251365,-500.0,9.966e-05,2]
[348328304,1736446251375,-500.0,9.966e-05,2]
[348328305,1736446251384,-500.0,9.966e-05,2]
[348328306,1736446251394,-118.54234111,9.966e-05,2]
[348328307,1736446251416,-381.45765889,9.966e-05,2]
[348328308,1736446251426,-500.0,9.966e-05,2]
[348328309,1736446251435,-500.0,9.966e-05,2]
[348328310,1736446251444,-500.0,9.966e-05,2]
[348328311,1736446251454,-500.0,9.966e-05,2]
[348328312,1736446251464,-500.0,9.966e-05,2]
[348328313,1736446251474,-509.65,9.966e-05,2]
[348328314,1736446251484,-500.0,9.966e-05,2]
[348328315,1736446251494,-578.81,9.966e-05,2]
[348328316,1736446251503,-914.2,9.966e-05,2]
[348328317,1736446251512,-500.0,9.967e-05,2]
[348328318,1736446251522,-339.57471854,9.967e-05,2]
[348328319,1736446251531,-286.76359041,9.967e-05,2]
[348328320,1736446251540,-500.0,9.967e-05,2]
[348328321,1736446251550,-762.95,9.967e-05,2]
[348328322,1736446251559,-500.0,9.967e-05,2]
[348328323,1736446251569,-1085.97,9.967e-05,2]
[348328324,1736446251578,-500.0,9.967e-05,2]
[348328325,1736446251587,-500.0,9.967e-05,2]
[348328326,1736446251597,-1367.76,9.967e-05,2]
[348328327,1736446251606,-500.0,9.967e-05,2]
[348328328,1736446251615,-500.0,9.967e-05,2]
[348328329,1736446251625,-920.0,9.967e-05,2]
[348328330,1736446251634,-500.0,9.967e-05,2]
[348328331,1736446251643,-500.0,9.967e-05,2]
[348328332,1736446251653,-500.0,9.967e-05,2]
[348328333,1736446251663,-500.0,9.967e-05,2]
[348328334,1736446251672,-500.0,9.967e-05,2]
[348328335,1736446251683,-500.0,9.967e-05,2]
[348328336,1736446251692,-500.0,9.967e-05,2]
[348328337,1736446251702,-500.0,9.967e-05,2]
[348328338,1736446251711,-500.0,9.967e-05,2]
[348328339,1736446251721,-500.0,9.967e-05,2]
[348328340,1736446251731,-500.0,9.967e-05,2]
[348328341,1736446251740,-535.70954898,9.967e-05,2]
[348328342,1736446251750,-2408.14,9.967e-05,2]
[348328343,1736446251759,-500.0,9.967e-05,2]
[348328344,1736446251772,-500.0,9.967e-05,2]
[348328345,1736446251782,-500.0,9.967e-05,2]
[348328346,1736446251791,-500.0,9.967e-05,2]
[348328347,1736446251801,-500.0,9.967e-05,2]
[348328348,1736446251812,-500.0,9.967e-05,2]
[348328349,1736446251823,-500.0,9.967e-05,2]
[348328350,1736446251832,-500.0,9.967e-05,2]
[348328351,1736446251842,-500.0,9.967e-05,2]
[348328352,1736446251852,-500.0,9.967e-05,2]
[348328353,1736446251862,-1733.41,9.967e-05,2]
[348328354,1736446251871,-500.0,9.967e-05,2]
[348328355,1736446251881,-500.0,9.967e-05,2]
[348328356,1736446251891,-500.0,9.967e-05,2]
[348328357,1736446251900,-500.0,9.967e-05,2]
[348328358,1736446251910,-500.0,9.967e-05,2]
[348328359,1736446251920,-500.0,9.967e-05,2]
[348328360,1736446251931,-500.0,9.967e-05,2]
[348328361,1736446251943,-500.0,9.967e-05,2]
[348328362,1736446251952,-500.0,9.967e-05,2]
[348328363,1736446251962,-6312.29,9.967e-05,2]
[348328364,1736446251971,-500.0,9.967e-05,2]
[348328365,1736446251981,-500.0,9.967e-05,2]
[348328366,1736446251991,-500.0,9.967e-05,2]
[348328367,1736446252000,-631.50961126,9.967e-05,2]
[348328368,1736446252009,-500.0,9.967e-05,2]
[348328369,1736446252019,-500.0,9.967e-05,2]
[348328370,1736446252028,-500.0,9.967e-05,2]
[348328371,1736446252038,-500.0,9.967e-05,2]
[348328372,1736446252047,-2345.7,9.967e-05,2]
[348328373,1736446252057,-500.0,9.967e-05,2]
[348328374,1736446252067,-500.0,9.967e-05,2]
[348328375,1736446252076,-500.0,9.967e-05,2]
[348328376,1736446252086,-500.0,9.967e-05,2]
[348328377,1736446252095,-500.0,9.967e-05,2]
[348328378,1736446252105,-500.0,9.967e-05,2]
[348328379,1736446252115,-500.0,9.967e-05,2]
[348328380,1736446252125,-500.0,9.967e-05,2]
[348328381,1736446252221,-500.0,9.967e-05,2]
[348328382,1736446252256,-500.0,9.967e-05,2]
[348328383,1736446252288,-500.0,9.967e-05,2]
[348328384,1736446252316,-500.0,9.967e-05,2]
[348328385,1736446252336,-1289.19,9.967e-05,2]
[348328386,1736446252359,-131.9167777,9.967e-05,2]
[348328387,1736446252409,-301.49926198,9.967e-05,2]
[348328388,1736446252425,-66.58396032,9.967e-05,2]
[348328389,1736446252435,-332.27837904,9.967e-05,2]
[348328390,1736446252460,-185.77162096,9.967e-05,2]
[348328391,1736446252469,-500.0,9.967e-05,2]
[348328392,1736446252478,-500.0,9.967e-05,2]
[348328393,1736446252487,-500.0,9.967e-05,2]
[348328394,1736446252496,-500.0,9.967e-05,2]
[348328395,1736446252506,-500.0,9.967e-05,2]
[348328396,1736446252515,-500.0,9.967e-05,2]
[348328397,1736446252524,-500.0,9.967e-05,2]
[348328398,1736446252534,-585.13771077,9.967e-05,2]
[348328399,1736446252543,-500.0,9.967e-05,2]
[348328400,1736446252552,-534.22,9.967e-05,2]
[348328401,1736446252561,-500.0,9.967e-05,2]
[348328402,1736446252570,-500.0,9.967e-05,2]
[348328403,1736446252580,-500.0,9.967e-05,2]
[348328404,1736446252589,-500.0,9.967e-05,2]
[348328405,1736446252598,-3297.21,9.967e-05,2]
[348328406,1736446252607,-500.0,9.967e-05,2]
[348328407,1736446252616,-500.0,9.967e-05,2]
[348328408,1736446252625,-500.0,9.967e-05,2]
[348328409,1736446252635,-500.0,9.967e-05,2]
[348328410,1736446252644,-500.0,9.967e-05,2]
[348328411,1736446252653,-500.0,9.967e-05,2]
[348328412,1736446252662,-500.0,9.967e-05,2]
[348328413,1736446252671,-500.0,9.967e-05,2]
[348328414,1736446252682,-500.0,9.967e-05,2]
[348328415,1736446252691,-500.0,9.967e-05,2]
[348328416,1736446252700,-500.0,9.967e-05,2]
[348328417,1736446252711,-959.38,9.967e-05,2]
[348328418,1736446252721,-500.0,9.967e-05,2]
[348328419,1736446252731,-500.0,9.967e-05,2]
[348328420,1736446252741,-500.0,9.967e-05,2]
[348328421,1736446252750,-500.0,9.967e-05,2]
[348328422,1736446252758,-500.0,9.967e-05,2]
[348328423,1736446252770,-539.48,9.967e-05,2]
[348328424,1736446252779,-500.0,9.967e-05,2]
[348328425,1736446252787,-500.0,9.967e-05,2]
[348328426,1736446252796,-500.0,9.967e-05,2]
[348328427,1736446252806,-500.0,9.967e-05,2]
[348328428,1736446252816,-500.0,9.967e-05,2]
[348328429,1736446252825,-500.0,9.967e-05,2]
[348328430,1736446252835,-623.41022951,9.967e-05,2]
[348328431,1736446252845,-500.0,9.967e-05,2]
[348328432,1736446252854,-500.0,9.967e-05,2]
[348328433,1736446252864,-500.0,9.967e-05,2]
[348328434,1736446252874,-500.0,9.967e-05,2]
[348328435,1736446252884,-500.0,9.967e-05,2]
[348328436,1736446252893,-626.84,9.967e-05,2]
[348328437,1736446252902,-533.3109272,9.967e-05,2]
[348328438,1736446252911,-500.0,9.967e-05,2]
[348328439,1736446252921,-590.62,9.967e-05,2]
[348328440,1736446252932,-500.0,9.967e-05,2]
[348328441,1736446252941,-500.0,9.967e-05,2]
[348328442,1736446252951,-500.0,9.967e-05,2]
[348328443,1736446252960,-500.0,9.967e-05,2]
[348328444,1736446252969,-500.0,9.967e-05,2]
[348328445,1736446252979,-500.0,9.967e-05,2]
[348328446,1736446252988,-500.0,9.967e-05,2]
[348328447,1736446252997,-590.65,9.967e-05,2]
[348328448,1736446253007,-500.0,9.967e-05,2]
[348328449,1736446253017,-500.0,9.967e-05,2]
[348328450,1736446253027,-500.0,9.967e-05,2]
[348328451,1736446253036,-500.0,9.967e-05,2]
[348328452,1736446253046,-500.0,9.967e-05,2]
[348328453,1736446253056,-736.38,9.967e-05,2]
[348328454,1736446253065,-500.0,9.967e-05,2]
[348328455,1736446253075,-500.0,9.967e-05,2]
[348328456,1736446253084,-500.0,9.967e-05,2]
[348328457,1736446253093,-415.79946575,9.967e-05,2]
[348328458,1736446253103,-500.0,9.967e-05,2]
[348328459,1736446253112,-500.0,9.967e-05,2]
[348328460,1736446253122,-500.0,9.967e-05,2]
[348328461,1736446253131,-500.0,9.967e-05,2]
[348328462,1736446253140,-500.0,9.967e-05,2]
[348328463,1736446253149,-500.0,9.967e-05,2]
[348328464,1736446253159,-500.0,9.967e-05,2]
[348328465,1736446253168,-500.0,9.967e-05,2]
[348328466,1736446253178,-500.0,9.967e-05,2]
[348328467,1736446253187,-500.0,9.967e-05,2]
[348328468,1736446253196,-500.0,9.967e-05,2]
[348328469,1736446253206,-500.0,9.967e-05,2]
[348328470,1736446253216,-500.0,9.967e-05,2]
[348328471,1736446253225,-500.0,9.967e-05,2]
[348328472,1736446253234,-500.0,9.967e-05,2]
[348328473,1736446253243,-835.57,9.967e-05,2]
[348328474,1736446253252,-500.0,9.967e-05,2]
[348328475,1736446253262,-418.16,9.967e-05,2]
[348328476,1736446253272,-500.0,9.967e-05,2]
[348328477,1736446253281,-968.37,9.967e-05,2]
[348328478,1736446253290,-500.0,9.967e-05,2]
[348328479,1736446253299,-500.0,9.967e-05,2]
[348328480,1736446253308,-500.0,9.967e-05,2]
[348328481,1736446253318,-507.91,9.967e-05,2]
[348328482,1736446253327,-500.0,9.967e-05,2]
[348328483,1736446253336,-500.0,9.967e-05,2]
[348328484,1736446253346,-842.86,9.967e-05,2]
[348328485,1736446253355,-888.38,9.967e-05,2]
[348328486,1736446253365,-500.0,9.967e-05,2]
[348328487,1736446253374,-500.0,9.967e-05,2]
[348328488,1736446253383,-500.0,9.967e-05,2]
[348328489,1736446253393,-500.0,9.967e-05,2]
[348328490,1736446253402,-809.97,9.967e-05,2]
[348328491,1736446253411,-500.0,9.967e-05,2]
[348328492,1736446253420,-500.0,9.967e-05,2]
[348328493,1736446253430,-500.0,9.967e-05,2]
[348328494,1736446253440,-500.0,9.967e-05,2]
[348328495,1736446253449,-500.0,9.967e-05,2]
[348328496,1736446253458,-500.0,9.967e-05,2]
[348328497,1736446253468,-500.0,9.967e-05,2]
[348328498,1736446253477,-500.0,9.967e-05,2]
[348328499,1736446253486,-1158.79,9.967e-05,2]
[348328500,1736446253495,-500.0,9.967e-05,2]